bitfinex/quotes_ETHUSD_20250112
["timestamp","ask_amount","ask_price","bid_price","bid_amount"]
[1736697807373,2.67956,3287.1,3286.4,0.04584144]
[1736697807617,3.023576,3287.1,3286.4,0.04584144]
[1736697807821,0.55,3286.9,3286.4,0.04584144]
[1736697808019,0.55,3286.8,3286.4,0.04584144]
[1736697810331,0.55,3286.8,3286.0,0.7983]
[1736697810507,0.55,3286.8,3286.5,0.04588858]
[1736697810839,0.55,3286.6,3286.0,0.7983]
[1736697811121,0.55,3286.8,3286.0,0.7983]
[1736697811329,0.55,3286.8,3286.1,0.04597499]
[1736697811931,0.55,3287.0,3286.1,0.04597499]
[1736697812077,3.55,3287.0,3286.1,0.04597499]
[1736697813032,0.55,3286.8,3286.1,0.04597499]
[1736697813372,0.6784166,3287.0,3286.1,0.04597499]
[1736697813576,5.473566,3287.1,3286.1,0.04597499]
[1736697813780,2.7514153,3287.5,3286.1,0.04597499]
[1736697813781,0.55,3287.0,3286.3,4.66457035]
[1736697814018,2.12943,3287.3,3286.5,0.7983]
[1736697814196,3.55,3287.2,3286.5,0.7983]
[1736697814527,2.91198,3287.5,3286.6,0.04601428]
[1736697814677,2.91198,3287.5,3286.6,2.58055463]
[1736697814882,0.55,3287.3,3286.6,0.04601428]
[1736697815635,2.6794,3287.3,3286.6,0.04601428]
[1736697816635,0.55,3287.3,3286.6,2.61097899]
[1736697816937,0.15851234,3287.4,3286.8,0.7983]
[1736697817080,0.15851234,3287.4,3287.0,0.7983]
[1736697817280,0.15851234,3287.4,3287.1,0.04588072]
[1736697822596,1.3327,3287.3,3287.1,0.04588072]
[1736697822796,2.67947,3287.2,3287.1,0.04588072]
[1736697823015,0.55,3287.1,3286.5,0.7983]
[1736697823214,0.55,3286.7,3286.1,0.7983]
[1736697823396,0.55,3286.7,3286.6,0.04519733]
[1736697823615,0.55,3286.7,3286.1,0.7983]
[1736697823616,0.896248,3286.7,3286.1,0.7983]
[1736697823797,0.55,3286.7,3286.1,0.7983]
[1736697824007,0.55,3286.9,3286.2,0.04519733]
[1736697824342,2.67966,3286.9,3286.2,0.04519733]
[1736697824989,0.55,3286.9,3286.2,0.04519733]
[1736697825194,0.55,3286.5,3286.2,0.04519733]
[1736697825703,0.55,3286.4,3285.9,0.7983]
[1736697825886,5.12966,3286.9,3285.9,0.7983]
[1736697826093,0.55,3286.6,3286.0,0.04519733]
[1736697826931,3.0,3286.9,3286.0,0.07562811]
[1736697826932,5.12969,3286.9,3286.0,0.07562811]
[1736697827319,0.55,3286.8,3286.0,2.16066078]
[1736697827492,0.55,3286.8,3286.1,0.04519733]
[1736697827692,0.55,3286.9,3286.2,0.7519]
[1736697828125,2.12956,3287.1,3286.3,0.04519733]
[1736697828126,0.55,3287.0,3286.3,0.04519733]
[1736697828817,0.55,3287.0,3286.3,0.07562499]
[1736697829006,0.55,3287.0,3286.3,0.04519733]
[1736697829642,0.55,3286.8,3286.3,0.04519733]
[1736697829845,0.267956,3287.0,3286.3,0.04519733]
[1736697830045,0.55,3286.7,3286.3,0.04519733]
[1736697830248,2.12973,3286.8,3286.3,0.04519733]
[1736697830448,0.55,3286.6,3286.3,0.04519733]
[1736697832622,0.55,3286.5,3286.3,0.04519733]
[1736697834706,0.55,3286.9,3286.3,0.04519733]
[1736697834911,0.55,3286.6,3286.3,0.04519733]
[1736697835324,0.55,3286.5,3286.3,0.04519733]
[1736697835519,0.817988,3286.5,3286.3,0.04519733]
[1736697835776,0.55,3286.3,3285.9,0.7519]
[1736697836110,0.55,3286.3,3286.0,0.04625002]
[1736697836900,2.12988,3286.6,3286.0,0.04625002]
[1736697837077,0.55,3286.7,3286.0,0.04625002]
[1736697837245,2.12993,3286.5,3286.0,0.04625002]
[1736697838675,2.67982,3286.7,3286.0,0.04625002]
[1736697838895,3.55962636,3286.7,3286.0,0.04625002]
[1736697839078,2.12987,3286.6,3286.0,0.04625002]
[1736697840603,2.12993,3286.5,3286.0,0.04625002]
[1736697841463,3.55961636,3286.7,3286.0,0.04625002]
[1736697841779,2.12989,3286.6,3286.0,0.04625002]
[1736697842866,3.11828363,3286.8,3286.0,0.04625002]
[1736697843067,3.11828363,3286.8,3286.1,0.8082]
[1736697843068,2.28828363,3286.8,3286.1,0.8082]
[1736697843281,0.15853363,3286.8,3286.1,0.8082]
[1736697843507,0.15853363,3286.8,3286.1,0.83862952]
[1736697843664,0.15853363,3286.8,3286.3,0.8082]
[1736697844142,2.12987,3286.6,3286.4,0.04481312]
[1736697844342,2.12992,3286.5,3286.1,0.8082]
[1736697844550,2.12999,3286.4,3285.5,2.34855]
[1736697844755,2.12999,3286.4,3286.2,0.04487596]
[1736697845082,2.12999,3286.4,3285.8,0.8082]
[1736697845565,2.12999,3286.4,3285.9,0.04487596]
[1736697846363,2.423039,3286.4,3285.9,0.04487596]
[1736697849586,0.38735399,3286.8,3285.9,0.04487596]
[1736697849790,2.28827363,3286.8,3286.0,0.7849]
[1736697849946,0.15853363,3286.8,3286.2,0.7849]
[1736697850594,0.15853363,3286.8,3286.3,0.04491525]
[1736697851448,2.12987,3286.6,3285.9,1.0029]
[1736697851651,2.421847,3286.5,3286.4,0.04488381]
[1736697851852,2.421847,3286.5,3285.9,1.0029]
[1736697852187,0.291877,3286.5,3286.0,0.04478952]
[1736697852353,2.12997,3286.5,3286.0,0.04478952]
[1736697852761,2.12999,3286.4,3286.0,0.04478952]
[1736697853191,2.12988,3286.6,3286.0,0.04478952]
[1736697853884,0.7889,3286.7,3286.0,0.04478952]
[1736697854455,0.15856907,3286.6,3286.0,0.04478952]
[1736697857322,0.7889,3287.1,3286.2,0.7849]
[1736697857470,0.7889,3287.1,3286.3,0.07537286]
[1736697857676,0.15858536,3287.0,3286.3,0.0449467]
[1736697858995,0.15858536,3287.0,3286.4,0.754]
[1736697859399,0.15858536,3287.0,3286.5,0.04496241]
[1736697859925,0.15858536,3287.0,3286.4,0.754]
[1736697860288,0.15858536,3287.0,3286.5,0.04496241]
[1736697860681,2.12929,3287.5,3286.6,0.754]
[1736697860883,3.0,3287.5,3286.7,0.04479741]
[1736697861082,2.28801047,3287.3,3286.7,0.04479741]
[1736697864223,0.15857047,3287.3,3286.7,0.04479741]
[1736697864386,2.12973,3286.8,3286.7,0.04479741]
[1736697864919,0.8056,3287.2,3286.3,0.7903]
[1736697865089,2.93509,3287.2,3286.4,0.04470312]
[1736697865290,0.15857047,3287.3,3286.5,0.7903]
[1736697865514,2.28798047,3287.3,3286.5,0.7903]
[1736697865715,2.28798047,3287.3,3286.6,0.04470312]
[1736697866519,2.12948,3287.2,3286.6,0.04470312]
[1736697868928,2.12935,3287.4,3286.7,0.8054]
[1736697869522,2.12935,3287.4,3286.8,0.04470312]
[1736697869744,2.52696216,3287.4,3286.7,0.8054]
[1736697870467,2.12935,3287.4,3286.7,0.8054]
[1736697870670,2.12941,3287.3,3286.7,0.8054]
[1736697870829,2.12941,3287.3,3286.8,0.04430239]
[1736697871258,2.12941,3287.3,3286.7,0.8054]
[1736697871569,2.12941,3287.3,3286.8,0.04430239]
[1736697871711,2.12947,3287.2,3286.8,0.04430239]
[1736697871916,2.12947,3287.2,3286.7,0.8054]
[1736697872115,2.12947,3287.2,3286.8,0.04430239]
[1736697872416,2.12947,3287.2,3286.7,0.8054]
[1736697872840,0.15860345,3287.5,3286.8,0.04430239]
[1736697873149,2.12935,3287.4,3286.8,0.04430239]
[1736697873357,2.1294,3287.3,3286.8,0.04430239]
[1736697873558,2.1294,3287.3,3286.7,0.8054]
[1736697873716,2.1294,3287.3,3286.8,0.04430239]
[1736697873913,2.1294,3287.3,3286.7,0.8054]
[1736697874162,2.1294,3287.3,3286.8,0.04430239]
[1736697874659,2.1294,3287.3,3286.7,0.8054]
[1736697874826,2.1294,3287.3,3286.9,0.04430239]
[1736697875026,2.1294,3287.3,3286.7,0.8054]
[1736697875232,2.1294,3287.3,3287.0,0.04430239]
[1736697875561,2.1294,3287.3,3287.1,0.04430239]
[1736697876061,2.1294,3287.3,3286.7,0.8054]
[1736697876257,2.1294,3287.3,3287.2,0.04430239]
[1736697876565,2.1294,3287.3,3286.7,0.8054]
[1736697877167,2.1294,3287.3,3286.8,0.04430239]
[1736697877529,2.1294,3287.3,3286.7,0.8054]
[1736697877748,2.1294,3287.3,3286.8,0.04430239]
[1736697877943,2.1294,3287.3,3286.7,0.8054]
[1736697878145,2.1294,3287.3,3286.8,0.04430239]
[1736697878346,0.22880035,3287.3,3286.5,0.5]
[1736697878559,2.12964,3287.0,3286.6,0.04430239]
[1736697879585,2.9062,3287.2,3286.6,0.04430239]
[1736697879958,2.1295,3287.2,3286.6,0.04430239]
[1736697881574,2.1295,3287.2,3286.7,0.8054]
[1736697881775,2.12937,3287.4,3286.7,0.8054]
[1736697881985,2.12937,3287.4,3286.8,0.04445168]
[1736697882187,2.35816735,3287.4,3286.8,0.04445168]
[1736697884357,2.12937,3287.4,3286.8,0.04445168]
[1736697886224,2.12945,3287.3,3286.8,0.04445168]
[1736697886431,0.7767,3287.4,3286.8,0.04445168]
[1736697886633,2.90607,3287.4,3286.5,1.3054]
[1736697886831,2.12956,3287.1,3286.5,1.3054]
[1736697886990,2.12956,3287.1,3286.6,0.0443574]
[1736697887584,2.12956,3287.1,3286.5,1.3054]
[1736697888119,2.12956,3287.1,3286.6,0.04438097]
[1736697888632,2.12947,3287.2,3286.6,0.04438097]
[1736697893226,2.12937,3287.4,3286.7,0.7664]
[1736697893591,2.12937,3287.4,3286.8,0.04431027]
[1736697894590,0.15860345,3287.5,3286.8,0.04431027]
[1736697894923,2.12948,3287.2,3286.8,0.04431027]
[1736697895233,2.12948,3287.2,3286.7,0.7664]
[1736697895728,2.12948,3287.2,3286.8,0.04431027]
[1736697895896,2.12948,3287.2,3286.7,0.7664]
[1736697896422,0.5522638,3287.5,3286.8,0.04431027]
[1736697896625,2.12953,3287.1,3286.8,0.04431027]
[1736697896822,2.12953,3287.1,3286.7,0.7664]
[1736697897208,2.12953,3287.1,3286.8,0.04284112]
[1736697897729,2.12953,3287.1,3286.7,0.7664]
[1736697898031,2.12953,3287.1,3286.8,0.04284112]
[1736697898232,0.778,3287.4,3286.8,0.04284112]
[1736697898389,2.12942,3287.3,3286.7,0.7664]
[1736697898930,2.12942,3287.3,3286.8,0.04286469]
[1736697899096,2.12942,3287.3,3286.7,0.7664]
[1736697899500,2.12942,3287.3,3286.8,0.04286469]
[1736697899843,2.12942,3287.3,3286.7,0.7664]
[1736697900192,2.12942,3287.3,3286.8,0.04286469]
[1736697900693,2.12942,3287.3,3286.7,0.7664]
[1736697901189,2.12942,3287.3,3286.8,0.04286469]
[1736697901734,2.12942,3287.3,3286.7,0.7664]
[1736697902092,2.12942,3287.3,3286.8,0.04286469]
[1736697902437,2.12942,3287.3,3286.7,0.7664]
[1736697902788,2.12942,3287.3,3286.8,0.04286469]
[1736697903304,4.835915,3287.5,3286.7,0.7664]
[1736697903498,2.12934,3287.4,3286.7,0.7664]
[1736697903804,2.12934,3287.4,3286.8,0.04286469]
[1736697904339,2.12954,3287.1,3286.7,0.7664]
[1736697904709,2.12954,3287.1,3286.8,0.04277041]
[1736697905091,0.778,3287.1,3286.5,0.5]
[1736697905536,0.778,3287.1,3286.6,0.04275469]
[1736697906054,2.1298,3286.7,3286.5,0.5]
[1736697906349,2.90786,3286.6,3286.5,0.5]
[1736697906512,2.12986,3286.6,3286.5,0.5]
[1736697906698,0.21298,3286.7,3286.5,0.5]
[1736697907098,3.87601155,3287.0,3286.6,0.7664]
[1736697907099,2.54801155,3287.0,3286.6,0.7664]
[1736697907614,2.54801155,3287.3,3286.7,0.04294325]
[1736697907828,2.54801155,3287.3,3286.8,0.7664]
[1736697908071,2.28793719,3287.4,3286.8,0.7664]
[1736697908211,2.28793719,3287.4,3286.9,0.04288825]
[1736697908959,0.15857719,3287.4,3286.9,0.04288825]
[1736697909346,0.15857719,3287.4,3286.8,0.7664]
[1736697910071,2.54801155,3287.7,3287.0,2.12958]
[1736697910228,2.54801155,3287.7,3287.1,0.79681851]
[1736697910671,4.67699155,3288.0,3287.2,0.04288825]
[1736697911014,4.67699155,3288.0,3287.1,0.79681851]
[1736697911216,2.12898,3288.0,3287.1,0.79681851]
[1736697913478,0.1585407,3288.1,3287.3,0.77]
[1736697913681,0.1585407,3288.1,3287.4,0.03041548]
[1736697913844,0.1585407,3288.1,3287.4,0.07330373]
[1736697914775,0.1585407,3288.1,3287.4,0.04288825]
[1736697915497,0.1585407,3288.1,3287.5,0.77]
[1736697916005,0.1585407,3288.1,3287.6,0.04288825]
[1736697916462,2.1287,3288.4,3287.6,0.07330372]
[1736697916806,2.1287,3288.4,3287.7,0.77]
[1736697917451,2.1287,3288.4,3287.8,0.04288825]
[1736697918951,2.1287,3288.4,3288.0,0.5]
[1736697919383,4.56164811,3288.7,3288.0,0.5]
[1736697919566,2.12868,3288.5,3288.0,0.5]
[1736697919864,2.12868,3288.5,3288.1,0.04233845]
[1736697920593,1.97628402,3288.7,3288.1,0.04233845]
[1736697920763,1.97628402,3288.7,3288.0,0.5]
[1736697920764,2.12876,3288.3,3288.0,0.5]
[1736697920951,2.12888,3288.1,3288.0,0.5]
[1736697923977,2.341768,3288.1,3288.0,0.5]
[1736697928220,6.710968,3288.1,3288.0,0.5]
[1736697928570,6.710968,3288.1,3288.0,0.21392582]
[1736697928796,2.12963,3287.0,3286.2,0.8332]
[1736697929021,0.7967,3287.1,3286.3,0.04008663]
[1736697929503,2.12969,3286.9,3286.3,0.04008663]
[1736697929671,2.1295,3287.2,3286.4,0.8332]
[1736697930062,3.15860933,3287.5,3286.4,0.8332]
[1736697930307,2.12968,3286.9,3286.5,0.04008663]
[1736697930542,2.12968,3286.9,3286.4,0.8332]
[1736697930733,2.12973,3286.8,3286.6,0.04008663]
[1736697930904,2.12973,3286.8,3286.4,0.8332]
[1736697931109,2.12973,3286.8,3286.7,0.04008663]
[1736697931306,2.13004,3286.4,3286.1,0.8332]
[1736697931536,2.12999,3286.4,3286.1,0.8332]
[1736697931707,2.12986,3286.6,3286.2,0.04008663]
[1736697932047,2.12979,3286.7,3286.1,0.8332]
[1736697932048,2.12997,3286.5,3286.1,0.8332]
[1736697932354,2.13004,3286.4,3286.1,0.8332]
[1736697932533,0.212973,3286.8,3286.2,0.04008663]
[1736697932847,0.38176189,3286.7,3286.1,0.8332]
[1736697933045,2.12968,3286.9,3286.1,0.8332]
[1736697933251,2.1298,3286.7,3286.2,0.04008663]
[1736697933641,2.12993,3286.5,3286.2,0.04008663]
[1736697934173,2.12993,3286.5,3286.1,0.8332]
[1736697934382,2.13,3286.4,3286.1,0.8332]
[1736697934662,2.13,3286.4,3286.2,0.04008663]
[1736697935161,2.13,3286.4,3285.8,0.8332]
[1736697935371,2.13,3286.4,3285.9,0.04008663]
[1736697936631,2.343,3286.4,3285.9,0.04008663]
[1736697938273,0.213,3286.4,3285.9,0.04008663]
[1736697938481,2.12993,3286.5,3285.9,0.04008663]
[1736697940578,0.7967,3286.9,3285.9,0.07051804]
[1736697940732,2.92617,3287.2,3286.0,0.8332]
[1736697941076,0.95520353,3287.2,3286.1,0.0723456]
[1736697941273,2.12964,3287.0,3286.1,0.0723456]
[1736697941461,2.12964,3287.0,3286.2,0.8332]
[1736697942072,2.12964,3287.0,3286.3,0.04191681]
[1736697942462,2.73812435,3287.0,3286.3,0.04191681]
[1736697942961,2.28799353,3287.2,3286.4,0.8321]
[1736697943167,2.28799353,3287.2,3286.5,0.04178324]
[1736697943587,2.28799353,3287.2,3286.4,0.8321]
[1736697944487,0.15850353,3287.2,3286.4,0.8321]
[1736697944668,2.12936,3287.4,3286.6,0.8321]
[1736697944861,2.342296,3287.4,3286.6,0.8321]
[1736697945190,2.342296,3287.4,3286.7,0.04164183]
[1736697948194,0.212936,3287.4,3286.7,0.04164183]
[1736697948370,2.12941,3287.3,3286.7,0.04164183]
[1736697950578,2.12954,3287.1,3286.7,0.04164183]
[1736697952287,2.12954,3287.1,3286.4,0.7818]
[1736697952489,2.12954,3287.1,3286.8,0.04108405]
[1736697952733,0.7822,3287.2,3286.4,0.7818]
[1736697952933,2.12969,3286.9,3286.4,0.7818]
[1736697953159,0.212969,3286.8,3286.5,0.04108405]
[1736697953654,2.342729,3286.8,3286.5,0.04108405]
[1736697954211,2.91206,3286.6,3286.5,0.04108405]
[1736697954520,2.91206,3286.6,3285.4,2.53454035]
[1736697954521,2.12992,3286.5,3285.9,0.7818]
[1736697954726,2.13,3286.4,3285.9,0.7818]
[1736697955048,2.42122,3286.4,3286.0,0.04114689]
[1736697955644,0.29122,3286.4,3286.0,0.04114689]
[1736697955843,2.12987,3286.6,3286.0,0.04114689]
[1736697957354,2.12962,3287.0,3286.1,0.7818]
[1736697957722,2.12962,3287.0,3286.2,0.04144543]
[1736697959155,0.7822,3287.1,3286.2,0.04144543]
[1736697959316,2.12966,3286.9,3286.2,0.04144543]
[1736697961945,0.7822,3287.1,3286.3,0.7818]
[1736697962144,2.12956,3287.1,3286.3,0.7818]
[1736697962451,2.12956,3287.1,3286.4,0.04166539]
[1736697963057,2.12964,3287.0,3286.4,0.04166539]
[1736697963825,2.12969,3286.9,3286.4,0.04166539]
[1736697964865,0.78644374,3287.1,3286.4,0.04166539]
[1736697965159,3.18501444,3288.0,3286.4,0.04166539]
[1736697965160,0.15848169,3287.6,3286.7,2.89418]
[1736697965458,0.15848169,3287.6,3286.8,0.80600254]
[1736697965762,0.15848169,3287.6,3287.0,0.7644]
[1736697966124,2.12948,3287.2,3287.1,0.04157897]
[1736697966350,2.425118,3287.2,3287.1,0.04157897]
[1736697966656,2.425118,3287.2,3286.7,0.7644]
[1736697966862,2.425118,3287.2,3287.1,0.04133544]
[1736697967022,2.425118,3287.2,3286.7,0.7644]
[1736697967226,2.425118,3287.2,3286.8,0.04133544]
[1736697967424,0.2425118,3287.1,3286.7,0.7644]
[1736697967736,2.3721018,3287.1,3286.8,0.04133544]
[1736697968152,0.2425118,3287.1,3286.1,0.8098]
[1736697968353,0.7647,3287.0,3286.1,0.8098]
[1736697968674,2.12978,3286.8,3286.2,0.04139828]
[1736697970051,2.12983,3286.7,3286.2,0.04139828]
[1736697970553,2.12993,3286.5,3286.2,0.04139828]
[1736697971152,2.12993,3286.5,3286.1,0.8098]
[1736697971465,2.89463,3286.5,3286.2,0.04139828]
[1736697971666,2.13002,3286.4,3285.8,0.8098]
[1736697971868,2.419492,3286.4,3285.8,0.8098]
[1736697972038,2.419492,3286.4,3285.9,0.04139828]
[1736697972937,0.289472,3286.4,3285.9,0.04139828]
[1736697973281,0.7647,3286.5,3285.9,0.04139828]
[1736697973483,2.13024,3286.0,3285.9,0.04139828]
[1736697973659,2.13024,3286.0,3285.6,0.8098]
[1736697973978,2.13024,3286.0,3285.9,0.04150828]
[1736697974178,0.55,3286.2,3285.4,0.8098]
[1736697974476,0.55,3286.2,3285.5,0.04150828]
[1736697974477,2.13037,3285.9,3285.5,0.04150828]
[1736697979898,2.398208,3286.1,3285.5,0.04150828]
[1736697981161,0.268008,3286.1,3285.5,0.04150828]
[1736697981361,2.13025,3286.0,3285.5,0.04150828]
[1736697981764,2.13049,3285.7,3285.5,0.04150828]
[1736697982072,5.13024,3286.0,3285.1,0.8098]
[1736697982275,2.1305,3285.7,3285.6,0.04238836]
[1736697982462,3.0,3286.0,3285.1,0.8098]
[1736697982463,2.13034,3285.9,3285.1,0.8098]
[1736697982662,0.513034,3285.8,3285.6,0.04237264]
[1736697982864,2.13034,3285.9,3285.1,0.8098]
[1736697983059,2.13034,3285.9,3285.7,0.04237264]
[1736697983374,2.13034,3285.9,3285.1,0.8098]
[1736697983817,2.13034,3285.9,3285.2,0.04246697]
[1736697983968,2.13038,3285.8,3285.2,0.04246697]
[1736697984314,2.13058,3285.5,3285.2,0.04246697]
[1736697984530,0.7647,3285.6,3285.2,0.04246697]
[1736697984665,0.7647,3285.6,3284.8,0.8098]
[1736697985014,0.7647,3285.6,3285.3,0.04304854]
[1736697985218,2.13077,3285.2,3284.8,0.8098]
[1736697985521,2.13085,3285.1,3284.8,0.8098]
[1736697985833,0.213077,3285.2,3284.8,0.8098]
[1736697986130,2.343887,3285.2,3284.8,0.8098]
[1736697986265,2.13091,3285.0,3284.3,0.8098]
[1736697986468,2.13091,3285.0,3284.9,0.0415162]
[1736697986685,2.3653087,3285.0,3284.3,0.8098]
[1736697986915,2.3653087,3285.0,3284.9,0.0415162]
[1736697987067,2.3653087,3285.0,3284.3,0.8098]
[1736697987268,2.3653087,3285.0,3284.9,0.0415162]
[1736697987583,0.2343987,3285.0,3284.3,0.84024698]
[1736697987791,2.13076,3285.3,3284.3,0.84024698]
[1736697987990,2.13076,3285.3,3284.4,0.0415162]
[1736697988302,0.55,3285.5,3284.4,0.0415162]
[1736697988607,2.13095,3285.0,3284.3,0.8098]
[1736697988766,2.68074,3285.3,3284.3,0.8098]
[1736697988969,2.13094,3285.0,3284.4,0.0415162]
[1736697989467,0.646854,3285.2,3284.4,0.0415162]
[1736697989468,2.68122,3284.5,3284.4,0.0415162]
[1736697989669,2.13141,3284.3,3283.6,0.771]
[1736697990064,2.1313,3284.4,3283.6,0.771]
[1736697990786,3.0,3284.4,3283.3,0.771]
[1736697990984,2.13148,3284.2,3283.3,0.771]
[1736697991186,2.81785404,3284.3,3283.3,0.771]
[1736697991409,2.81785404,3284.3,3283.3,0.80145378]
[1736697991614,2.81785404,3284.3,3283.4,0.771]
[1736697991935,2.81785404,3284.3,3283.1,0.005]
[1736697991936,0.7803,3284.8,3283.7,0.771]
[1736697992115,2.13111,3284.7,3283.7,2.93317951]
[1736697992280,2.13111,3284.7,3283.8,0.771]
[1736697993815,2.2897259,3284.7,3283.8,0.771]
[1736697994543,2.2897259,3284.7,3283.9,0.03911066]
[1736697994689,2.59672849,3284.7,3283.9,0.03911066]
[1736697995940,2.13116,3284.6,3283.9,0.03911066]
[1736697996241,2.13135,3284.3,3283.9,0.03911066]
[1736697996441,0.55,3284.6,3283.9,0.03911066]
[1736697996611,2.13142,3284.2,3283.9,0.03911066]
[1736697996806,0.213142,3284.2,3283.9,0.03911066]
[1736697997127,2.68118,3284.6,3283.9,0.03911066]
[1736697997334,2.68118,3284.6,3283.8,0.771]
[1736697997539,2.68118,3284.6,3284.0,0.04021954]
[1736697997696,2.68118,3284.6,3283.8,0.771]
[1736697997895,2.68118,3284.6,3284.1,0.04021954]
[1736697998092,0.31467985,3284.5,3283.8,0.771]
[1736697998298,2.13132,3284.4,3284.2,0.04021954]
[1736697998494,2.13132,3284.4,3283.8,0.771]
[1736697998694,2.13132,3284.4,3284.3,0.04021954]
[1736697998994,2.13132,3284.4,3283.8,0.771]
[1736697999414,2.13132,3284.4,3283.9,0.04021954]
[1736697999617,0.213132,3284.3,3283.9,0.04021954]
[1736698000737,2.13118,3284.6,3283.9,0.04021954]
[1736698001212,3.46561849,3284.7,3283.9,0.04021954]
[1736698001413,2.13128,3284.4,3283.9,0.04021954]
[1736698001746,2.13122,3284.5,3283.9,0.04021954]
[1736698002037,2.13134,3284.4,3283.8,0.771]
[1736698002240,0.213134,3284.3,3283.8,0.771]
[1736698002625,2.13116,3284.6,3283.8,0.771]
[1736698002825,3.46561849,3284.7,3283.8,0.771]
[1736698003038,5.59670849,3284.7,3283.9,0.04116348]
[1736698003443,2.13124,3284.5,3283.9,0.04116348]
[1736698003615,3.46561849,3284.7,3283.9,0.04116348]
[1736698003940,0.7803,3284.3,3283.2,2.90303]
[1736698004142,0.7803,3284.3,3284.0,0.04139953]
[1736698004347,2.91167,3284.3,3283.2,2.90303]
[1736698004531,2.91167,3284.3,3284.1,0.04139953]
[1736698004736,2.91167,3284.3,3283.2,2.90303]
[1736698004935,3.202837,3284.3,3284.2,0.04139953]
[1736698005315,3.202837,3284.3,3283.2,2.90303]
[1736698005526,3.202837,3284.3,3284.2,0.04139953]
[1736698005804,3.202837,3284.3,3283.2,2.90303]
[1736698006233,3.202837,3284.3,3283.3,0.04139953]
[1736698006620,0.3202837,3284.2,3283.3,0.04139953]
[1736698006837,0.7803,3284.3,3283.3,0.04139953]
[1736698006838,2.1315,3284.1,3283.3,0.04139953]
[1736698007428,2.13163,3283.9,3283.3,0.04139953]
[1736698008200,0.55,3284.2,3283.3,0.04139953]
[1736698008201,0.8105,3283.7,3283.3,0.04139953]
[1736698008404,2.13167,3283.8,3283.3,0.04139953]
[1736698008605,2.13167,3283.8,3282.8,2.1323]
[1736698008802,2.13167,3283.8,3283.4,0.04139953]
[1736698009068,2.425887,3283.8,3283.2,0.7791]
[1736698009210,2.425887,3283.8,3283.5,0.04139953]
[1736698009414,2.425887,3283.8,3283.2,0.7791]
[1736698009618,2.425887,3283.8,3283.6,0.04139953]
[1736698009819,2.425887,3283.8,3283.2,0.7791]
[1736698010230,2.4553887,3283.7,3283.3,0.04139953]
[1736698010522,2.4553887,3283.7,3283.2,0.7791]
[1736698010832,2.4553887,3283.7,3283.4,0.04139953]
[1736698011032,2.4553887,3283.7,3283.2,0.7791]
[1736698011454,0.3236387,3283.7,3283.3,0.04139953]
[1736698011824,0.3236387,3283.7,3283.2,0.7791]
[1736698012155,2.13169,3283.8,3283.2,0.7791]
[1736698012319,2.13169,3283.8,3283.3,0.04139953]
[1736698012657,2.13169,3283.8,3283.2,0.7791]
[1736698012852,2.13169,3283.8,3283.4,0.04139953]
[1736698013020,2.13169,3283.8,3283.2,0.7791]
[1736698013221,0.294219,3283.7,3283.5,0.04139953]
[1736698013441,0.294219,3283.7,3283.2,0.7791]
[1736698013652,2.425959,3283.7,3283.6,0.04139953]
[1736698013857,2.425959,3283.7,3283.0,0.7791]
[1736698014172,2.425959,3283.7,3283.2,0.04202133]
[1736698014374,0.2425959,3283.6,3283.2,0.04202133]
[1736698016226,0.96905572,3283.9,3283.2,0.04202133]
[1736698016427,2.13171,3283.8,3283.2,0.04202133]
[1736698017621,0.96905572,3283.9,3283.2,0.04202133]
[1736698017922,2.13175,3283.7,3283.2,0.04202133]
[1736698018635,2.13181,3283.6,3283.2,0.04202133]
[1736698018832,2.1317,3283.8,3283.2,0.04202133]
[1736698019048,2.13176,3283.7,3283.2,0.04202133]
[1736698019962,2.94214,3283.9,3283.2,0.04202133]
[1736698020524,0.8105,3283.9,3283.2,0.04202133]
[1736698020727,2.13177,3283.7,3283.2,0.04202133]
[1736698020952,2.425997,3283.7,3283.2,0.04202133]
[1736698021280,2.13195,3283.4,3283.2,0.04202133]
[1736698021425,0.294227,3283.7,3283.2,0.04202133]
[1736698021764,0.294227,3283.7,3283.0,0.7791]
[1736698021765,2.13193,3283.5,3283.0,0.7791]
[1736698021924,2.13193,3283.5,3283.3,0.0426274]
[1736698022126,0.213193,3283.4,3283.0,0.7791]
[1736698024660,0.213193,3283.4,3283.2,0.0426274]
[1736698024998,0.294227,3283.7,3283.0,0.7341]
[1736698025155,0.294227,3283.7,3283.3,0.0426274]
[1736698025356,2.13169,3283.8,3283.0,0.7341]
[1736698025556,2.13169,3283.8,3283.4,0.04275337]
[1736698025809,2.13169,3283.8,3283.0,0.7341]
[1736698025957,2.13169,3283.8,3283.5,0.04275337]
[1736698026158,2.1318,3283.6,3283.0,0.7341]
[1736698026396,0.51318,3283.5,3283.0,0.7341]
[1736698027096,2.13189,3283.5,3283.0,0.7341]
[1736698027256,2.94244,3283.4,3282.7,1.25]
[1736698027668,2.94244,3283.4,3282.8,0.7791]
[1736698029363,2.94244,3283.4,3282.7,1.25]
[1736698030899,2.13215,3283.1,3282.7,1.25]
[1736698031668,2.94247,3283.4,3282.7,1.25]
[1736698031978,2.13201,3283.3,3282.7,1.25]
[1736698033090,2.13219,3283.0,3282.7,1.25]
[1736698033290,2.13209,3283.2,3282.7,1.25]
[1736698033785,2.13209,3283.2,3282.8,0.04275337]
[1736698033986,2.426349,3283.2,3282.7,1.25]
[1736698034194,2.426349,3283.2,3282.9,0.04275337]
[1736698034402,2.426349,3283.2,3282.7,1.25]
[1736698034598,0.294259,3283.2,3283.0,0.04275337]
[1736698034777,2.13194,3283.4,3282.7,1.25]
[1736698034980,2.13194,3283.4,3283.1,0.04275337]
[1736698035302,2.13194,3283.4,3283.2,0.04275337]
[1736698035482,2.13194,3283.4,3282.7,1.25]
[1736698036017,2.13194,3283.4,3282.8,0.04275337]
[1736698036230,2.725124,3283.4,3282.8,0.04275337]
[1736698036972,0.55,3283.3,3282.8,0.04275337]